bitfinex/quotes_ETHUSD_20250106
["timestamp","ask_amount","ask_price","bid_price","bid_amount"]
[1736142557177,2.43697,3693.2,3693.0,35.0]
[1736142557410,0.55259099,3693.3,3692.9,2.31734627]
[1736142557411,2.9934047,3693.1,3692.9,2.31734627]
[1736142557611,2.9934047,3693.1,3692.9,0.92738106]
[1736142557965,2.43704,3693.0,3692.9,0.92738106]
[1736142558681,0.5564347,3693.1,3692.9,0.92738106]
[1736142558905,0.5564347,3693.1,3692.7,35.0]
[1736142559116,0.44472117,3693.0,3692.7,35.0]
[1736142559269,2.57478605,3692.9,3692.3,1.95165726]
[1736142559578,2.57478605,3692.6,3692.3,1.12065726]
[1736142559779,2.43741,3692.5,3692.3,36.12065726]
[1736142559991,2.9386296,3692.5,3692.3,36.12065726]
[1736142560166,2.9386296,3692.5,3692.3,35.0]
[1736142560167,0.7634,3692.4,3692.3,35.0]
[1736142560365,3.20083,3692.4,3692.3,35.0]
[1736142560560,3.20083,3692.4,3692.0,2.51223337]
[1736142560766,0.62768357,3692.3,3692.0,2.51223337]
[1736142560996,0.62768357,3692.3,3692.1,35.0]
[1736142562203,5.01208605,3692.6,3692.1,35.0]
[1736142562407,0.53794328,3692.4,3692.1,35.0]
[1736142562567,0.53794328,3692.4,3691.6,0.831]
[1736142562767,2.97538328,3692.4,3691.6,0.831]
[1736142563286,5.01209605,3692.6,3691.7,35.0]
[1736142563608,2.43738,3692.5,3691.7,35.92714318]
[1736142564306,5.43738,3692.5,3691.7,35.92714318]
[1736142564486,2.43759,3692.2,3691.7,35.0]
[1736142564686,2.43763,3692.1,3691.7,35.0]
[1736142565011,2.93887161,3692.1,3691.7,35.0]
[1736142565384,2.43774,3692.0,3691.7,35.0]
[1736142565587,2.43779,3691.9,3691.7,35.0]
[1736142565781,1.32834161,3692.1,3691.7,35.0]
[1736142565782,3.76599161,3692.1,3691.7,35.0]
[1736142566099,1.32834161,3692.1,3691.7,35.0]
[1736142566906,0.538996,3691.9,3691.7,35.0]
[1736142567108,2.43783,3691.8,3691.7,35.0]
[1736142567333,2.4379,3691.7,3691.3,0.8046]
[1736142567811,0.72572976,3691.9,3691.0,35.0]
[1736142567812,2.43818,3691.3,3691.0,35.0]
[1736142568109,0.8152,3691.3,3691.0,35.0]
[1736142568570,3.25338,3691.3,3691.0,35.0]
[1736142568777,2.57478605,3691.1,3690.6,1.12065726]
[1736142569011,5.01331605,3690.8,3690.6,1.12065726]
[1736142569211,1.39801661,3691.3,3690.6,1.12065726]
[1736142569412,2.57478605,3691.4,3690.7,35.0]
[1736142570023,5.01288605,3691.4,3690.7,35.0]
[1736142570378,0.55438359,3691.2,3690.7,35.0]
[1736142570573,2.57478605,3691.4,3690.7,35.0]
[1736142570778,2.43797,3691.6,3690.8,0.7533]
[1736142571213,0.55546817,3691.5,3691.3,35.0]
[1736142574020,2.62454376,3691.9,3691.4,0.8131]
[1736142574222,2.43742,3692.5,3691.5,0.02708788]
[1736142574389,2.43742,3692.5,3691.4,0.8131]
[1736142574796,2.43744,3692.4,3691.6,35.0]
[1736142575003,3.01845261,3692.4,3691.6,35.0]
[1736142575201,2.43744,3692.4,3691.6,35.0]
[1736142576497,0.54852686,3692.2,3691.6,35.0]
[1736142577433,2.4378,3691.9,3691.6,35.0]
[1736142577736,2.4378,3691.9,3691.4,0.8131]
[1736142578238,3.12331291,3692.2,3691.5,35.0]
[1736142578556,2.99371929,3692.1,3691.5,35.0]
[1736142578735,3.25833,3692.0,3691.5,35.0]
[1736142579101,2.43773,3692.0,3691.5,35.0]
[1736142579301,2.43779,3691.9,3691.5,35.0]
[1736142579502,2.43779,3691.9,3691.1,0.7757]
[1736142579699,3.04950822,3691.9,3691.1,0.7757]
[1736142579928,2.43784,3691.8,3691.1,0.7757]
[1736142580225,2.43784,3691.8,3691.2,35.0]
[1736142581640,0.61171822,3691.9,3691.2,35.0]
[1736142583241,3.18650427,3691.9,3691.2,35.0]
[1736142583441,2.81209836,3691.8,3691.2,35.0]
[1736142583971,0.37425836,3691.8,3691.2,35.0]
[1736142586647,2.43815,3691.4,3690.8,0.7757]
[1736142587010,2.43815,3691.4,3690.9,35.0]
[1736142587941,2.43817,3691.3,3690.9,35.0]
[1736142588125,0.243817,3691.2,3690.9,35.0]
[1736142590008,0.8206,3691.7,3690.9,35.0]
[1736142590207,2.43789,3691.8,3690.9,35.0]
[1736142591526,0.55280196,3691.8,3690.9,35.0]
[1736142591877,2.57478605,3691.5,3690.9,35.0]
[1736142592032,3.12758801,3691.8,3690.9,35.0]
[1736142592220,0.3127588,3691.7,3690.9,35.0]
[1736142592420,2.7506888,3691.7,3690.9,35.0]
[1736142593454,0.3127588,3691.7,3690.9,35.0]
[1736142593677,2.43798,3691.6,3690.9,35.0]
[1736142594922,5.01281605,3691.5,3690.9,35.0]
[1736142595147,5.60065373,3691.5,3690.9,35.0]
[1736142601593,3.16262373,3691.5,3690.9,35.0]
[1736142601774,2.43811,3691.4,3690.9,35.0]
[1736142602293,2.57478605,3691.2,3690.9,35.0]
[1736142602566,2.57478605,3691.2,3690.5,1.94535726]
[1736142602798,2.69577861,3691.1,3690.5,1.94535726]
[1736142602999,2.69577861,3691.1,3690.6,35.0]
[1736142603132,2.43836,3691.0,3690.6,35.0]
[1736142603337,2.43844,3690.9,3690.6,35.0]
[1736142603952,5.01322605,3690.9,3690.6,35.0]
[1736142604288,0.52707047,3690.8,3690.6,35.0]
[1736142604893,0.52707047,3690.8,3689.9,4.12065726]
[1736142604894,0.7843,3690.6,3689.9,4.12065726]
[1736142605036,0.53083236,3690.7,3689.9,1.12065726]
[1736142605232,2.96940236,3690.7,3690.0,35.0]
[1736142605472,5.01340605,3690.6,3690.0,35.0]
[1736142605681,3.04584089,3690.5,3690.0,35.0]
[1736142605851,3.04584089,3690.5,3690.0,38.44536689]
[1736142606461,0.60713089,3690.5,3690.0,38.44536689]
[1736142606765,2.43877,3690.4,3690.0,38.44536689]
[1736142607154,2.43877,3690.4,3690.0,35.0]
[1736142607478,0.61515193,3690.4,3690.0,35.0]
[1736142607680,5.01340605,3690.6,3690.0,35.0]
[1736142609042,5.01340605,3690.6,3689.8,0.7812]
[1736142609364,0.53083236,3690.7,3689.8,0.7812]
[1736142609565,0.53083236,3690.7,3689.9,35.0]
[1736142610292,0.53083236,3690.7,3690.0,2.3239382]
[1736142610676,2.43854,3690.8,3690.0,2.3239382]
[1736142610875,2.93987261,3690.8,3690.1,35.0]
[1736142611413,3.48408955,3690.8,3690.1,35.0]
[1736142611703,0.50133261,3690.8,3690.1,35.0]
[1736142613093,2.57478605,3690.9,3690.1,35.0]
[1736142613280,3.38078605,3691.5,3690.2,0.83942893]
[1736142613485,2.43823,3691.2,3690.2,0.8141]
[1736142613857,3.38078605,3691.5,3690.2,0.8141]
[1736142613858,2.43833,3691.1,3690.2,0.8141]
[1736142614166,2.43833,3691.1,3690.3,0.92932462]
[1736142614371,2.99435209,3691.0,3690.3,0.92932462]
[1736142615492,0.55597209,3691.0,3690.3,0.92932462]
[1736142616770,2.4383,3691.1,3690.4,35.0]
[1736142616966,0.54660486,3691.3,3690.4,35.0]
[1736142617192,2.43823,3691.2,3690.4,35.0]
[1736142617698,0.54660486,3691.3,3690.4,35.0]
[1736142617699,0.54660486,3691.3,3690.5,0.7524]
[1736142618071,0.54660486,3691.3,3690.6,0.02709285]
[1736142618273,0.54660486,3691.3,3690.7,35.0]
[1736142619394,2.4377,3692.0,3690.9,2.43842]
[1736142619694,2.4377,3692.0,3691.0,0.7928]
[1736142620069,2.97281577,3692.0,3691.1,35.0]
[1736142620393,0.53511577,3692.0,3691.1,35.0]
[1736142620572,2.43791,3691.7,3691.1,35.0]
[1736142621563,2.43803,3691.5,3691.1,35.0]
[1736142621884,2.4379,3691.7,3691.0,0.7928]
[1736142622508,2.57478605,3691.8,3691.0,0.7928]
[1736142622794,2.82476018,3691.9,3691.0,0.7928]
[1736142623465,3.10670208,3692.1,3691.1,0.7855]
[1736142623687,5.54434208,3692.1,3691.1,1.71438003]
[1736142623858,0.53191603,3692.1,3691.2,0.7855]
[1736142625161,0.53191603,3692.1,3691.3,0.92888003]
[1736142625377,2.96959603,3692.1,3691.3,0.92888003]
[1736142625775,0.2969596,3692.0,3691.3,0.92888003]
[1736142625972,2.7346796,3692.0,3691.3,0.92888003]
[1736142627363,0.2969596,3692.0,3691.3,0.92888003]
[1736142629005,2.7346596,3692.0,3691.3,0.92888003]
[1736142629902,2.57478605,3692.4,3691.4,0.7855]
[1736142631097,2.57478605,3692.4,3691.5,0.92888003]
[1736142631482,0.53644914,3692.2,3691.6,0.7748]
[1736142631884,2.57478605,3692.4,3691.6,0.7748]
[1736142632220,0.50121661,3692.3,3691.6,0.7748]
[1736142632548,0.50121661,3692.3,3691.7,0.04866302]
[1736142634723,1.04872656,3692.3,3691.7,0.04866302]
[1736142635222,0.50121661,3692.3,3691.7,0.04866302]
[1736142636426,2.43757,3692.2,3691.7,0.04866302]
[1736142636621,0.60627092,3692.1,3691.7,0.04866302]
[1736142642318,3.18105697,3692.1,3691.7,0.04866302]
[1736142643327,3.2164,3692.0,3691.7,0.04866302]
[1736142643490,2.57478605,3691.8,3691.3,0.7615]
[1736142643695,0.7787,3692.0,3691.1,1.39258934]
[1736142643696,5.01282605,3691.5,3691.1,1.39258934]
[1736142644008,2.93939261,3691.4,3691.1,1.39258934]
[1736142644426,2.93939261,3691.4,3690.8,1.88215726]
[1736142644620,2.43823,3691.3,3690.8,1.88215726]
[1736142646336,2.43823,3691.3,3690.8,0.7615]
[1736142646798,2.43823,3691.3,3690.9,0.04686573]
[1736142647000,0.62929987,3691.2,3690.8,0.7615]
[1736142647232,0.53525921,3691.1,3690.9,0.04686573]
[1736142647455,0.53525921,3691.1,3690.8,0.7615]
[1736142647739,0.53525921,3691.1,3690.9,0.04686573]
[1736142648938,2.43836,3691.0,3690.5,0.8213]
[1736142649097,3.05613051,3691.0,3690.5,0.8213]
[1736142649300,0.815,3690.6,3690.3,2.5132466]
[1736142649545,5.82843605,3690.6,3690.3,2.5132466]
[1736142649916,5.82843605,3690.6,3690.0,0.7521]
[1736142651765,2.43877,3690.4,3689.3,4.12065726]
[1736142651929,2.43877,3690.4,3689.4,0.764]
[1736142652263,3.07587372,3690.4,3689.4,0.764]
[1736142652927,2.43883,3690.3,3689.4,0.764]
[1736142654350,0.63710372,3690.4,3689.4,0.764]
[1736142655920,0.54248115,3690.5,3689.6,0.764]
[1736142656120,0.54248115,3690.5,3689.7,0.02709927]
[1736142656555,0.54248115,3690.5,3689.6,0.764]
[1736142656722,2.43849,3690.8,3689.7,0.02709917]
[1736142657327,2.98352005,3690.8,3689.7,0.02709917]
[1736142657585,0.783,3691.0,3689.8,0.764]
[1736142657860,2.57478605,3691.2,3690.1,3.20294]
[1736142658026,2.57478605,3691.2,3690.2,0.7675]
[1736142658225,3.12267477,3691.2,3690.2,0.7675]
[1736142658760,5.56092477,3691.2,3690.2,0.7675]
[1736142658946,0.63439248,3691.1,3690.2,0.7675]
[1736142659462,3.07271248,3691.1,3690.2,0.7675]
[1736142659960,2.43837,3691.0,3690.2,0.7675]
[1736142660161,0.63439248,3691.1,3690.2,0.7675]
[1736142661748,0.63439248,3691.1,3690.3,0.04750048]
[1736142662861,2.4386,3690.7,3690.3,0.04750048]
[1736142663061,0.61952972,3691.0,3689.9,0.8165]
[1736142663062,2.57478605,3690.6,3689.9,0.8165]
[1736142663263,2.43876,3690.4,3689.9,0.8165]
[1736142663426,2.43550192,3690.4,3690.0,0.04762615]
[1736142663628,2.43883,3690.3,3690.0,0.04762615]
[1736142663827,2.43883,3690.3,3689.8,1.12065726]
[1736142664027,2.43883,3690.3,3689.9,0.04700941]
[1736142664449,0.53188603,3690.4,3689.9,0.04700941]
[1736142664661,2.97064603,3690.4,3689.6,0.8165]
[1736142664865,2.97064603,3690.4,3689.7,0.0470932]
[1736142666227,2.43876,3690.4,3689.7,0.0470932]
[1736142666947,2.43882,3690.3,3689.7,0.0470932]
[1736142667555,2.43897,3690.1,3689.7,0.0470932]
[1736142667763,0.57745561,3690.0,3689.7,0.0470932]
[1736142667933,0.57745561,3690.0,3689.6,0.8165]
[1736142668332,0.7608,3690.2,3689.7,0.04717246]
[1736142669369,3.19969,3690.2,3689.7,0.04717246]
[1736142669743,3.19969,3690.2,3689.0,3.56029726]
[1736142670066,3.19969,3690.2,3689.1,3.7526]
[1736142670268,3.19969,3690.2,3689.2,0.04738197]
[1736142670432,3.01640761,3690.1,3689.2,0.04738197]
[1736142671435,5.01383605,3690.0,3689.2,0.04738197]
[1736142672189,2.57478605,3690.0,3689.2,0.04738197]
[1736142674470,2.43916,3689.8,3689.2,0.04738197]
[1736142674870,2.57478605,3689.7,3689.2,0.04738197]
[1736142675087,0.7594,3689.5,3688.7,2.17628567]
[1736142675269,0.7594,3689.5,3688.8,35.04767895]
[1736142675270,2.57478605,3689.4,3688.8,35.04767895]
[1736142676170,2.43949,3689.3,3688.8,35.04767895]
[1736142676467,2.43956,3689.2,3688.8,35.04767895]
[1736142677506,2.57478605,3689.4,3688.8,35.04767895]
[1736142677735,0.38355807,3689.3,3688.8,35.04767895]
[1736142678511,2.43905,3690.0,3688.8,35.04767895]
[1736142678512,2.57478605,3689.7,3688.9,0.7794]
[1736142678715,2.57478605,3689.7,3689.0,0.04680725]
[1736142680704,5.01381605,3690.0,3689.0,0.04680725]
[1736142680925,2.57478605,3690.0,3689.1,0.8152]
[1736142681134,2.57478605,3690.0,3689.3,0.8152]
[1736142681348,2.43891,3690.2,3689.4,0.04663962]
[1736142681606,3.01992961,3690.2,3689.4,0.04663962]
[1736142682707,0.54858147,3690.1,3689.4,0.04663962]
[1736142684036,2.57478605,3690.0,3689.4,0.04663962]
[1736142684217,5.01382605,3690.0,3689.4,0.04663962]
[1736142684417,5.01382605,3690.0,3689.5,35.0]
[1736142684644,5.62816876,3690.0,3689.5,35.0449889]
[1736142685251,2.43909,3689.9,3689.5,35.0449889]
[1736142685552,2.43909,3689.9,3689.5,0.0449889]
[1736142686051,0.7965,3689.9,3688.9,0.8152]
[1736142686256,5.01380605,3690.0,3689.6,0.044947]
[1736142686551,0.69399071,3689.9,3689.0,35.0]
[1736142686751,0.54858147,3690.1,3689.1,0.8152]
[1736142687049,0.54858147,3690.1,3689.1,3.29992652]
[1736142688756,0.54858147,3690.1,3689.1,2.48472652]
[1736142688970,0.54858147,3690.1,3689.2,0.8056]
[1736142689450,0.54858147,3690.1,3689.3,0.04507271]
[1736142689637,2.43872,3690.5,3689.4,0.7784]
[1736142689842,2.43876,3690.4,3689.5,0.32800938]
[1736142690052,0.54780546,3690.2,3689.5,0.37299828]
[1736142690540,0.54780546,3690.2,3689.6,35.0]
[1736142690852,0.54780546,3690.2,3689.7,0.0449051]
[1736142691543,0.54780546,3690.2,3689.8,35.0]
[1736142691719,0.54780546,3690.2,3689.9,0.04482131]
[1736142694283,0.54780546,3690.2,3690.0,0.7829]
[1736142694476,0.54780546,3690.2,3690.1,0.04473753]
[1736142694782,0.54780546,3690.2,3690.0,0.7829]
[1736142695082,0.54780546,3690.2,3690.1,0.04473753]
[1736142695382,0.54780546,3690.2,3690.0,35.7829]
[1736142695752,0.54780546,3690.2,3690.1,0.04473753]
[1736142695953,2.57478605,3690.9,3690.1,2.50277729]
[1736142696148,2.57478605,3690.9,3690.2,0.04469564]
[1736142696381,2.57478605,3690.9,3690.0,0.7829]
[1736142696382,2.57478605,3690.9,3690.3,35.0]
[1736142696585,2.57478605,3690.9,3690.3,35.04465376]
[1736142696949,5.01323605,3690.9,3690.3,35.04465376]
[1736142697150,0.55556459,3690.5,3690.3,35.04465376]
[1736142697690,3.55116065,3690.5,3690.3,0.04465376]
[1736142698053,2.43876,3690.4,3689.7,1.12065726]
[1736142698294,2.43876,3690.4,3689.8,0.0448632]
[1736142699292,2.43883,3690.3,3689.8,0.0448632]
[1736142699494,5.01361605,3690.3,3689.8,0.0448632]
[1736142699689,3.99239372,3690.3,3689.8,0.0448632]
[1736142699990,5.01381605,3690.0,3689.6,35.931902]
[1736142700160,5.01381605,3690.0,3689.5,0.8224]
[1736142700598,5.01381605,3690.0,3689.5,35.8224]
[1736142700802,2.57478605,3689.7,3689.3,1.12065726]
[1736142701276,2.57478605,3689.7,3689.3,35.0]
[1736142703392,5.01401605,3689.7,3689.3,35.0]
[1736142703795,2.57478605,3689.7,3689.3,35.0]
[1736142705510,2.99088709,3689.9,3689.3,35.0]
[1736142706797,2.99088709,3689.9,3689.4,0.04500171]
[1736142707120,0.55179709,3689.9,3689.4,0.04500171]
[1736142707423,0.55179709,3689.9,3689.5,35.0]
[1736142707719,0.55179709,3689.9,3689.5,35.04495981]
[1736142708810,2.57478605,3690.3,3689.6,0.8324]
[1736142709219,2.57478605,3690.3,3689.7,0.04510505]
[1736142709846,2.57478605,3690.3,3689.8,0.8324]
[1736142710333,2.57478605,3690.6,3690.0,0.8324]
[1736142710515,0.54204937,3690.5,3690.1,0.04484584]
[1736142710838,0.54204937,3690.5,3690.0,0.8324]
[1736142711042,0.54204937,3690.5,3690.1,0.9322211]
[1736142711206,0.54204937,3690.5,3690.1,0.97706694]
[1736142711558,5.01345605,3690.6,3690.1,0.97706694]
[1736142711701,5.51480166,3690.6,3690.1,0.97706694]
[1736142712314,5.01345605,3690.6,3690.1,0.97706694]
[1736142712639,2.57478605,3690.6,3690.1,0.04484584]
[1736142712850,0.53578644,3690.8,3690.1,0.04484584]
[1736142713051,0.53578644,3690.8,3690.0,0.8324]
[1736142713345,0.53578644,3690.8,3690.1,0.0446168]
[1736142714448,0.53578644,3690.8,3690.1,0.55231596]
[1736142714747,2.57478605,3690.6,3690.2,0.7605]
[1736142714917,2.57478605,3690.6,3690.3,0.04276435]
[1736142715251,5.01341605,3690.6,3690.3,0.04276435]
[1736142715480,2.43871,3690.5,3689.9,3.27948891]
[1736142715675,2.43871,3690.5,3690.4,0.04268088]
[1736142715851,3.07416132,3690.5,3689.9,3.27948891]
[1736142716042,3.07416132,3690.5,3690.4,0.04268503]
[1736142716241,3.07416132,3690.5,3689.9,0.7605]
[1736142716650,3.07416132,3690.5,3690.0,0.04285258]
[1736142718032,0.63545132,3690.5,3690.0,0.04285258]
[1736142718368,2.83989374,3690.4,3690.0,0.04285258]
[1736142719291,2.57478605,3690.6,3690.0,0.04285258]
[1736142719429,5.01340605,3690.6,3690.0,0.04285258]
[1736142719625,5.01340605,3690.6,3690.1,35.0]
[1736142719869,0.54001719,3690.8,3690.1,35.0]
[1736142720046,0.54001719,3690.8,3690.3,0.8064]
[1736142720459,0.54001719,3690.8,3690.4,0.04279318]
[1736142720646,0.54001719,3690.8,3690.5,35.0]
[1736142721168,0.54001719,3690.8,3690.6,0.04270942]
[1736142723793,0.54001719,3690.8,3690.3,0.8064]
[1736142723980,0.54001719,3690.8,3690.4,35.0]
[1736142724157,0.54001719,3690.8,3690.4,35.04269751]
[1736142725071,2.97850719,3690.8,3690.4,35.04269751]
[1736142725270,2.57478605,3690.6,3690.4,35.04269751]
[1736142725471,2.57478605,3690.6,3690.4,0.04269751]
[1736142725672,3.26339,3690.5,3690.4,0.04269751]
[1736142725890,2.43895,3690.1,3690.0,1.12065726]
[1736142726194,5.01373605,3690.1,3690.0,0.04277772]
[1736142726497,6.58368966,3690.1,3690.0,0.04277772]
[1736142728207,2.43911,3689.9,3689.2,0.8089]
[1736142728576,2.43911,3689.9,3689.3,0.043071]
[1736142728793,2.43911,3689.9,3689.4,35.0]
[1736142729306,2.43911,3689.9,3689.5,0.04298719]
[1736142730165,3.9538257,3690.1,3689.5,0.04298719]
[1736142730406,3.1291257,3690.1,3689.5,0.04298719]
[1736142732593,3.76280327,3690.1,3689.5,0.04298719]
[1736142732774,3.76280327,3690.1,3689.2,1.92955726]
[1736142732971,5.83956605,3689.3,3689.2,1.12065726]
[1736142733171,2.43961,3689.1,3689.0,1.68098589]
[1736142734009,3.40008605,3689.3,3689.0,1.68098589]
[1736142734209,2.43961,3689.1,3689.0,1.68098589]
[1736142735004,2.43961,3689.1,3688.4,35.0]
[1736142735174,2.57478605,3689.0,3688.4,35.0]
[1736142736706,5.01447605,3689.0,3688.4,35.0]
[1736142737007,2.57478605,3688.6,3688.5,0.04103798]
[1736142737511,2.57478605,3688.6,3688.2,0.7653]
[1736142737706,2.57478605,3688.3,3688.2,0.7653]
[1736142739284,2.57478605,3688.3,3688.2,35.7653]
[1736142742801,2.57478605,3688.3,3687.2,5.44086]
[1736142743003,2.57478605,3688.3,3687.4,0.795]
[1736142743225,2.57478605,3688.3,3688.2,35.0]
[1736142745351,5.01492605,3688.3,3688.2,35.0]
[1736142748607,5.01492605,3688.3,3687.8,0.7659]
[1736142749137,5.01492605,3688.3,3687.9,35.0]
[1736142749636,2.57478605,3688.0,3687.9,35.0]
[1736142750039,5.01512605,3688.0,3687.9,35.0]
[1736142751950,2.4405,3687.8,3687.2,0.7811]
[1736142752105,2.57478605,3687.3,3686.7,0.7811]
[1736142752300,2.57478605,3687.3,3687.2,35.0]
[1736142753852,2.57478605,3687.3,3686.7,0.7811]
[1736142754745,2.57478605,3687.0,3686.7,0.7811]
[1736142756328,2.57478605,3687.0,3686.2,0.7796]
[1736142756532,0.7683,3687.2,3686.2,0.7796]
[1736142756533,2.57478605,3686.4,3686.2,0.7796]
[1736142758203,2.57478605,3686.4,3686.3,0.0438084]
[1736142758402,2.57478605,3686.4,3686.2,0.7796]
[1736142758646,2.57478605,3686.4,3686.3,0.0438084]
[1736142759019,0.7683,3687.2,3686.2,0.7796]
[1736142759223,2.57478605,3687.1,3686.3,0.07093433]
[1736142759437,2.57478605,3687.1,3686.4,0.8053]
[1736142759950,2.57478605,3687.1,3686.5,0.04383698]
[1736142760532,2.57478605,3686.8,3686.5,0.04383698]
[1736142761113,2.57478605,3686.8,3686.4,0.8053]
[1736142762325,2.57478605,3686.8,3686.5,0.04421189]
[1736142763537,2.57478605,3686.8,3685.1,0.28244222]
[1736142763538,2.83226466,3686.8,3685.9,0.7891]
[1736142763734,2.57478605,3686.8,3685.9,0.7891]
[1736142763927,2.57478605,3686.8,3686.0,0.04442177]
[1736142764459,2.57478605,3686.5,3686.0,0.04442177]
[1736142764825,2.57478605,3686.5,3685.9,0.7891]
[1736142765024,2.57478605,3686.5,3686.1,0.04437979]
[1736142765255,2.57478605,3686.5,3686.0,0.04442177]
[1736142765557,2.57478605,3686.5,3686.1,0.04437979]
[1736142765745,2.57478605,3686.5,3685.9,0.7891]
[1736142765947,2.57478605,3686.5,3686.0,0.04453429]
[1736142766124,2.57478605,3686.5,3685.9,0.7891]
[1736142766325,2.57478605,3686.5,3686.0,0.04453429]
[1736142766522,2.57478605,3686.5,3685.9,0.7891]
[1736142766853,2.57478605,3686.5,3686.0,0.04453429]
[1736142767233,2.57478605,3686.5,3685.9,0.7891]
[1736142769038,2.57478605,3686.1,3685.9,0.7891]
[1736142769429,2.57478605,3686.4,3686.0,0.04450512]
[1736142769843,2.57478605,3686.4,3685.9,0.7891]
[1736142770063,2.57478605,3686.4,3686.1,0.04446314]
[1736142770263,2.57478605,3686.4,3686.0,0.04450512]
[1736142770458,2.57478605,3686.4,3686.2,0.04442116]
[1736142770646,2.57478605,3686.4,3686.1,0.04446314]
[1736142770854,3.10213452,3686.4,3686.3,0.04437918]
[1736142771054,3.10213452,3686.4,3686.2,0.04442116]
[1736142771362,3.10213452,3686.4,3685.9,0.7891]
[1736142772060,3.10213452,3686.4,3686.0,0.04450512]
[1736142772558,3.10213452,3686.4,3686.1,0.04446314]
[1736142772729,0.63428192,3686.3,3685.9,0.7891]
[1736142773133,0.63428192,3686.3,3686.0,0.04450512]
[1736142773383,0.63428192,3686.3,3685.9,0.7891]
[1736142773727,0.63428192,3686.3,3686.0,0.04450512]
[1736142773929,0.63428192,3686.3,3685.7,0.7752]
[1736142774173,2.57478605,3686.4,3685.8,0.04458909]
[1736142774357,2.57478605,3686.7,3685.8,0.04458909]
[1736142774555,0.7985,3686.9,3685.9,0.7752]
[1736142774790,2.57478605,3687.0,3686.2,0.7752]
[1736142774950,2.57478605,3687.0,3686.2,3.21671]
[1736142775150,2.57478605,3687.0,3686.4,0.7771]
[1736142775478,2.57478605,3687.0,3686.5,0.04459114]
[1736142776371,2.57478605,3687.0,3686.4,0.7771]
[1736142776534,2.57478605,3687.0,3686.5,0.04459114]
[1736142776735,2.57478605,3687.0,3686.4,0.7771]
[1736142776960,2.57478605,3687.0,3686.5,0.04459114]
[1736142777360,2.57478605,3687.3,3686.5,2.81224225]
[1736142777561,2.57478605,3687.3,3686.6,0.7771]
[1736142777837,2.57478605,3687.3,3686.7,0.04434883]
[1736142785456,2.57478605,3687.0,3686.7,0.04434883]
[1736142785765,2.57478605,3687.0,3686.6,0.7771]
[1736142786091,2.57478605,3687.0,3686.7,0.04434883]
[1736142786390,2.57478605,3687.0,3686.6,0.7771]
[1736142786588,2.57478605,3687.0,3686.7,0.04434883]
[1736142786885,2.57478605,3687.0,3686.6,0.7771]
[1736142786886,2.57478605,3687.3,3686.6,0.7771]
[1736142787088,2.57478605,3687.3,3686.8,0.04430686]
[1736142787278,2.57478605,3687.3,3686.6,0.7771]
[1736142787279,2.57478605,3687.3,3686.7,0.04434883]
[1736142787590,2.57478605,3687.3,3686.8,0.04430686]
[1736142787791,2.57478605,3687.3,3686.6,0.7771]
[1736142787956,2.57478605,3687.3,3686.7,0.04415296]
[1736142788387,2.57478605,3687.0,3686.7,0.04415296]
[1736142788689,2.57478605,3687.0,3686.3,0.7916]
[1736142789191,2.57478605,3687.0,3686.4,0.04427887]
[1736142790537,0.25747861,3687.3,3686.4,0.04427887]
[1736142790538,2.83226466,3687.3,3686.5,0.8098]
[1736142790794,2.83226466,3687.3,3686.6,0.04419493]
[1736142791697,2.57478605,3687.0,3686.6,0.04419493]
[1736142792013,2.57478605,3687.0,3686.5,0.8098]
[1736142792161,2.57478605,3687.0,3686.6,0.04419493]
[1736142794861,2.57478605,3686.7,3686.6,0.04419493]
[1736142795487,2.57478605,3686.7,3686.2,0.8281]
[1736142795676,2.57478605,3686.7,3686.6,0.04431163]
[1736142795970,3.15506165,3686.7,3686.6,0.04431163]
[1736142796273,3.69797044,3686.7,3686.2,0.8281]
[1736142796472,3.15506165,3686.7,3686.6,0.04431163]
[1736142796675,3.15506165,3686.7,3686.2,0.8281]
[1736142796874,3.15506165,3686.7,3686.6,0.04439499]
[1736142797360,3.15506165,3686.7,3686.2,0.8281]
[1736142797557,2.57478605,3686.7,3686.3,0.04452091]
[1736142797813,2.57478605,3686.7,3686.2,0.8281]
[1736142797977,2.57478605,3686.7,3686.3,0.04452091]
[1736142798252,2.57478605,3686.7,3686.2,0.8281]
[1736142798557,2.57478605,3686.7,3686.3,0.04452091]
[1736142798764,2.57478605,3686.7,3686.2,0.8281]
[1736142798960,2.57478605,3686.7,3686.3,0.04452091]
[1736142799169,2.57478605,3686.7,3686.2,0.8281]
[1736142799345,2.57478605,3686.7,3686.3,0.04452091]
[1736142799544,2.57478605,3686.7,3686.2,0.8281]
[1736142799871,2.57478605,3686.7,3686.3,0.04452091]
[1736142800075,2.57478605,3686.4,3686.3,0.04452091]
[1736142800283,2.57478605,3686.4,3686.0,1.40058659]
[1736142800449,2.57478605,3686.4,3686.3,0.04452091]
[1736142800657,2.57478605,3686.4,3686.1,0.8321]
[1736142800855,2.57478605,3686.4,3686.3,0.04452091]
[1736142801379,2.57478605,3686.4,3686.1,0.8321]
[1736142801676,2.57478605,3686.4,3686.3,0.04452091]
[1736142801880,2.57478605,3686.4,3686.2,0.04487131]
[1736142802183,2.57478605,3686.4,3686.3,0.04482934]
[1736142802384,2.57478605,3686.4,3685.8,0.8188]
[1736142802558,2.57478605,3686.4,3686.3,0.04490438]
[1736142802758,2.57478605,3686.4,3685.8,0.8188]
[1736142803088,2.57478605,3686.4,3686.3,0.04490438]
[1736142803383,3.07639165,3686.4,3686.3,0.04490438]
[1736142803678,2.57478605,3686.4,3685.8,0.8188]
[1736142803864,2.57478605,3686.4,3686.3,0.04490438]
[1736142804067,2.57478605,3686.4,3685.8,0.8188]
[1736142804273,2.57478605,3686.4,3686.3,0.04490855]
[1736142804476,2.57478605,3686.4,3685.8,1.94504939]
[1736142804678,2.57478605,3686.4,3686.3,0.04490855]
[1736142804878,2.57478605,3686.4,3685.8,1.94504939]
[1736142805188,2.57478605,3685.9,3685.8,1.12624939]
[1736142805386,3.37528605,3685.9,3685.8,1.12624939]
[1736142805619,6.15454466,3685.9,3685.8,1.12624939]
[1736142806279,6.70873816,3685.9,3685.8,1.12624939]
[1736142807566,6.70873816,3685.9,3685.2,1.86744879]
[1736142807567,6.70873816,3685.9,3684.8,3.0]
[1736142807766,6.37120955,3685.9,3684.8,3.0]
[1736142808691,2.44182,3685.8,3685.0,35.0]